bitfinex/quotes_BTCUSD_20250115
["timestamp","ask_amount","ask_price","bid_price","bid_amount"]
[1736902956691,0.01699778,97159.0,97158.0,0.33943605]
[1736902957068,0.01699778,97159.0,97158.0,0.41503605]
[1736902957272,0.0008532,97159.0,97158.0,0.51503605]
[1736902957610,0.0008532,97159.0,97158.0,0.51003605]
[1736902957966,0.0008532,97159.0,97158.0,0.61903605]
[1736902958205,0.0008532,97159.0,97158.0,0.51003605]
[1736902958652,0.0008532,97159.0,97158.0,0.51903605]
[1736902961136,0.0008532,97159.0,97158.0,0.33919843]
[1736902961350,0.0008532,97159.0,97158.0,0.23920913]
[1736902962178,0.0008532,97159.0,97158.0,0.15937151]
[1736902962381,0.0217019,97159.0,97158.0,0.15937151]
[1736902962571,0.0008532,97159.0,97158.0,0.23920913]
[1736902963200,0.0008532,97159.0,97158.0,0.23020913]
[1736902963601,0.0008532,97159.0,97158.0,0.23920913]
[1736902963812,0.0008532,97159.0,97158.0,0.23020913]
[1736902964218,0.0008532,97159.0,97158.0,0.23520913]
[1736902964440,0.0008532,97159.0,97158.0,0.23020913]
[1736902964642,0.0008532,97159.0,97158.0,0.23920913]
[1736902965048,0.0008532,97159.0,97158.0,0.34343605]
[1736902965242,0.0008532,97159.0,97158.0,0.46463605]
[1736902965443,0.0008532,97159.0,97158.0,0.56463605]
[1736902965692,0.0008532,97159.0,97158.0,0.66463605]
[1736902966844,0.0008532,97159.0,97158.0,0.65563605]
[1736902967052,0.0008532,97159.0,97158.0,0.66463605]
[1736902968491,0.00179277,97165.0,97164.0,0.37653762]
[1736902968694,0.00179277,97165.0,97164.0,1.48156154]
[1736902968931,0.00179277,97165.0,97164.0,1.85616154]
[1736902970331,0.00179277,97165.0,97164.0,1.86516154]
[1736902970720,0.00179277,97165.0,97164.0,1.85616154]
[1736902970958,0.00179277,97165.0,97164.0,1.86516154]
[1736902971348,0.00179277,97187.0,97186.0,0.38232762]
[1736902971531,0.00179277,97187.0,97186.0,1.13144454]
[1736902972583,0.00179277,97187.0,97186.0,1.13159247]
[1736902973407,0.00179277,97187.0,97186.0,1.13959247]
[1736902979185,0.00179277,97187.0,97186.0,0.75027555]
[1736902979592,0.00179277,97187.0,97186.0,0.85450247]
[1736902983139,0.00179277,97187.0,97186.0,0.90140247]
[1736902983310,0.00179277,97187.0,97186.0,1.17840247]
[1736902984295,0.00179277,97187.0,97186.0,1.17040247]
[1736902984531,0.00179277,97187.0,97186.0,1.17940247]
[1736902985176,0.00179277,97187.0,97186.0,1.18960068]
[1736902986715,0.00179277,97187.0,97186.0,1.18060068]
[1736902986946,0.205678,97240.0,97192.0,0.75531562]
[1736902987217,0.205678,97240.0,97198.0,0.50043762]
[1736902987218,0.01056491,97236.0,97198.0,0.50043762]
[1736902987392,0.01613772,97210.0,97198.0,1.32021454]
[1736902987616,0.12257435,97230.0,97198.0,1.32021454]
[1736902987816,0.01613339,97222.0,97198.0,1.32021454]
[1736902987999,0.01613339,97222.0,97198.0,1.31961454]
[1736902988799,0.01613339,97222.0,97198.0,1.52537954]
[1736902989765,0.01613339,97222.0,97198.0,1.53437954]
[1736902990485,0.01613339,97222.0,97198.0,1.54337954]
[1736902990687,0.12257435,97220.0,97198.0,1.53581016]
[1736902990894,0.12257435,97220.0,97198.0,1.55681739]
[1736902991108,0.01613339,97222.0,97198.0,1.56581739]
[1736902991305,0.0004,97239.0,97198.0,1.58881739]
[1736902992569,0.0004,97239.0,97198.0,1.90551739]
[1736902993073,0.205681,97238.0,97198.0,1.91451739]
[1736902993291,0.12257435,97220.0,97198.0,1.88251739]
[1736902993493,0.12257435,97220.0,97198.0,1.89151739]
[1736902994260,0.12257435,97220.0,97198.0,1.88251739]
[1736902994465,0.12257435,97220.0,97198.0,1.89151739]
[1736902995133,0.12257435,97210.0,97198.0,1.64151739]
[1736902995335,0.12257435,97210.0,97198.0,1.51007954]
[1736902995678,0.12257435,97210.0,97198.0,1.06047954]
[1736902995905,0.205746,97208.0,97198.0,0.84571454]
[1736902996126,0.205754,97204.0,97198.0,0.74148762]
[1736902996328,0.205762,97200.0,97198.0,0.75048762]
[1736902996470,0.205762,97200.0,97198.0,0.74148762]
[1736902996670,0.205754,97204.0,97198.0,0.74148762]
[1736902996916,0.205754,97204.0,97198.0,0.75048762]
[1736902997116,0.205754,97204.0,97198.0,0.74148762]
[1736902997267,0.205754,97204.0,97198.0,0.74648762]
[1736902997724,0.205754,97204.0,97198.0,0.74148762]
[1736902998186,0.00592,97222.0,97198.0,0.9198633]
[1736902998399,0.00592,97223.0,97198.0,1.0198633]
[1736902998615,0.12257435,97220.0,97198.0,1.1506633]
[1736902998951,0.0161346,97210.0,97198.0,1.1556633]
[1736902999390,0.12257435,97210.0,97198.0,1.1506633]
[1736902999585,0.12257435,97210.0,97198.0,1.1596633]
[1736902999786,0.12257435,97210.0,97198.0,1.08551454]
[1736903000242,0.001253,97199.0,97198.0,1.08551454]
[1736903000454,0.001253,97199.0,97198.0,1.07651454]
[1736903000802,0.001253,97199.0,97198.0,1.08551454]
[1736903001206,0.001253,97199.0,97198.0,0.98551454]
[1736903001592,0.001253,97199.0,97198.0,1.08551454]
[1736903002039,0.001253,97199.0,97198.0,1.07651454]
[1736903002376,0.001253,97199.0,97198.0,1.08551454]
[1736903002710,0.001253,97199.0,97198.0,1.07651454]
[1736903002920,0.001253,97199.0,97198.0,1.08551454]
[1736903003134,0.001253,97199.0,97198.0,1.07651454]
[1736903003560,0.001253,97199.0,97198.0,1.08551454]
[1736903005348,0.001253,97199.0,97198.0,0.88881454]
[1736903005544,0.001253,97199.0,97198.0,0.98551454]
[1736903005790,0.001253,97199.0,97198.0,1.08551454]
[1736903006168,0.001253,97199.0,97198.0,0.98551454]
[1736903006371,0.001253,97199.0,97198.0,1.08551454]
[1736903006850,0.001253,97199.0,97198.0,1.07651454]
[1736903007250,0.001253,97199.0,97198.0,1.08551454]
[1736903007630,0.001253,97199.0,97198.0,0.98551454]
[1736903007954,0.001253,97199.0,97198.0,0.75048762]
[1736903008912,0.001253,97199.0,97198.0,0.57455]
[1736903009116,0.001253,97199.0,97198.0,0.67125]
[1736903009117,0.02356751,97199.0,97198.0,0.67125]
[1736903009300,0.001253,97199.0,97198.0,0.67125]
[1736903009512,0.001253,97199.0,97198.0,0.66225]
[1736903010140,0.001253,97199.0,97198.0,0.66625]
[1736903010362,0.001253,97199.0,97198.0,0.66225]
[1736903010920,0.001253,97199.0,97198.0,0.56555]
[1736903011468,0.001253,97199.0,97198.0,0.66225]
[1736903011814,0.001253,97199.0,97198.0,0.66525]
[1736903012010,0.001253,97199.0,97198.0,0.66225]
[1736903012561,0.001253,97199.0,97198.0,0.56934067]
[1736903013635,0.007173,97199.0,97198.0,0.56934067]
[1736903014031,0.06509208,97199.0,97198.0,0.56934067]
[1736903014689,0.06509208,97199.0,97198.0,0.56734067]
[1736903015247,0.08123056,97199.0,97198.0,0.56734067]
[1736903015586,0.02431148,97199.0,97198.0,0.56734067]
[1736903016153,0.02331148,97199.0,97198.0,0.56734067]
[1736903016284,0.02431148,97199.0,97198.0,0.56734067]
[1736903016492,0.02331148,97199.0,97198.0,0.56734067]
[1736903016709,0.007173,97199.0,97198.0,0.56734067]
[1736903017092,0.10725527,97199.0,97198.0,0.56734067]
[1736903017293,0.25725527,97199.0,97198.0,0.56734067]
[1736903017711,0.157173,97199.0,97198.0,0.56734067]
[1736903018178,0.152253,97199.0,97198.0,0.56734067]
[1736903018379,0.157173,97199.0,97198.0,0.56734067]
[1736903018551,0.158173,97199.0,97198.0,0.56734067]
[1736903019103,0.158173,97199.0,97186.0,0.00014793]
[1736903019104,0.02076238,97187.0,97186.0,0.00014793]
[1736903019296,0.02076238,97187.0,97158.0,0.09849151]
[1736903019297,0.355833,97166.0,97158.0,0.09849151]
[1736903019534,0.361753,97166.0,97165.0,0.00193937]
[1736903019742,0.205848,97159.0,97158.0,0.00179151]
[1736903019956,0.205848,97159.0,97137.0,0.0967]
[1736903019957,0.023,97157.0,97137.0,0.0967]
[1736903020162,0.355894,97137.0,97133.0,0.2285955]
[1736903020370,0.361814,97137.0,97136.0,0.1830245]
[1736903020586,0.361814,97137.0,97136.0,0.0001481]
[1736903020782,0.355894,97137.0,97136.0,0.0001481]
[1736903020950,0.4385806,97137.0,97136.0,0.0001481]
[1736903021175,0.355894,97137.0,97136.0,0.0001481]
[1736903021384,0.361814,97137.0,97136.0,0.0001481]
[1736903022098,0.37218413,97137.0,97136.0,0.0021481]
[1736903022300,0.37218413,97137.0,97136.0,0.0001481]
[1736903022735,0.37518413,97137.0,97136.0,0.0001481]
[1736903022910,0.37218413,97137.0,97136.0,0.0001481]
[1736903024065,0.355894,97137.0,97136.0,0.0001481]
[1736903024265,0.205894,97137.0,97136.0,0.09963877]
[1736903024513,0.205894,97137.0,97136.0,0.09863877]
[1736903024965,0.27166827,97137.0,97136.0,0.09863877]
[1736903025134,0.208894,97137.0,97136.0,0.00193877]
[1736903025694,0.205894,97137.0,97136.0,0.00193877]
[1736903025924,0.72467192,97137.0,97136.0,0.00193877]
[1736903026171,1.1453343,97137.0,97136.0,0.00493877]
[1736903026375,1.24956122,97137.0,97136.0,7.7e-07]
[1736903026520,0.94121022,97137.0,97136.0,7.7e-07]
[1736903026926,0.96213653,97137.0,97136.0,7.7e-07]
[1736903027326,0.355952,97110.0,97109.0,0.0967]
[1736903027645,0.361872,97110.0,97109.0,0.00049527]
[1736903027849,0.52469412,97110.0,97109.0,0.00049527]
[1736903028046,0.355971,97101.0,97100.0,0.00179193]
[1736903029201,0.48319792,97101.0,97100.0,0.00179193]
[1736903029401,0.65255892,97101.0,97100.0,0.00179193]
[1736903029998,0.75093047,97101.0,97100.0,0.00179193]
[1736903030201,0.75093047,97101.0,97100.0,9.3e-07]
[1736903030398,0.59543314,97101.0,97100.0,9.3e-07]
[1736903030598,0.59543314,97101.0,97094.0,0.00149172]
[1736903030599,0.38004538,97095.0,97094.0,0.00149172]
[1736903030802,1.5879363,97095.0,97094.0,7.2e-07]
[1736903031028,0.60959159,97095.0,97094.0,7.2e-07]
[1736903032499,0.61859159,97095.0,97094.0,0.00100072]
[1736903032836,0.61859159,97095.0,97094.0,0.00010072]
[1736903033268,0.59782921,97095.0,97094.0,0.00010072]
[1736903033474,0.5162723,97095.0,97094.0,0.00010072]
[1736903033901,0.5221923,97095.0,97094.0,0.00010072]
[1736903034272,1.3034553,97095.0,97094.0,0.00010072]
[1736903034873,0.206039,97069.0,97068.0,0.0967]
[1736903035082,0.211959,97069.0,97068.0,0.0967]
[1736903035504,0.206039,97069.0,97068.0,0.0967]
[1736903035710,0.211959,97069.0,97068.0,0.0967]
[1736903036088,0.211959,97069.0,97068.0,0.09684827]
[1736903036296,0.00604,97069.0,97068.0,0.09684827]
[1736903036682,0.008,97095.0,97068.0,0.09684827]
[1736903036683,0.206002,97087.0,97075.0,0.0967]
[1736903036928,0.206016,97080.0,97078.0,0.25213762]
[1736903037140,0.206005,97085.0,97079.0,0.17593762]
[1736903037355,0.206005,97085.0,97082.0,0.0967]
[1736903037356,0.00604,97084.0,97082.0,0.0967]
[1736903037565,0.00604,97084.0,97083.0,0.0967]
[1736903038596,0.15,97087.0,97084.0,0.0967]
[1736903038597,0.206002,97086.0,97084.0,0.0967]
[1736903038800,0.00604,97085.0,97084.0,0.0967]
[1736903039158,0.15,97087.0,97086.0,0.07923762]
[1736903039362,0.00604,97087.0,97086.0,0.07923762]
[1736903040126,0.206002,97086.0,97084.0,0.1007]
[1736903041105,0.206002,97086.0,97084.0,0.0967]
[1736903042489,0.206002,97086.0,97084.0,0.0997]
[1736903042944,0.15,97089.0,97085.0,0.07923762]
[1736903043118,0.15,97089.0,97088.0,0.07923762]
[1736903044088,0.00604,97091.0,97088.0,0.07923762]
[1736903044286,0.205969,97102.0,97084.0,0.0997]
[1736903044287,0.18361467,97100.0,97098.0,0.07923762]
[1736903044490,0.205965,97104.0,97103.0,0.0967]
[1736903044942,0.205965,97104.0,97103.0,0.1725]
[1736903045428,0.20646023,97104.0,97103.0,0.1725]
[1736903045880,0.20646023,97104.0,97103.0,0.1765]
[1736903046254,0.20646023,97104.0,97103.0,0.1725]
[1736903047177,0.20646023,97104.0,97103.0,0.17429235]
[1736903047574,0.20646023,97104.0,97103.0,0.17829235]
[1736903047783,0.20646023,97104.0,97103.0,0.17429235]
[1736903047993,0.26772621,97104.0,97103.0,0.17429235]
[1736903048157,0.20646023,97104.0,97103.0,0.17929235]
[1736903048673,0.20646023,97104.0,97103.0,0.17429235]
[1736903048905,0.20646023,97104.0,97103.0,0.17929235]
[1736903050065,0.20646023,97104.0,97103.0,0.10349235]
[1736903050670,0.21250023,97104.0,97103.0,0.09849235]
[1736903051115,0.21250023,97104.0,97103.0,0.10249235]
[1736903051287,0.20646023,97104.0,97103.0,0.09849235]
[1736903051493,0.27316221,97104.0,97103.0,0.09849235]
[1736903051691,0.27316221,97104.0,97103.0,0.10149235]
[1736903051924,0.42316221,97104.0,97103.0,0.00479235]
[1736903052125,0.42316221,97104.0,97103.0,0.00179235]
[1736903052344,0.36250023,97104.0,97103.0,0.00279235]
[1736903052742,0.36250023,97104.0,97103.0,0.00179235]
[1736903054022,0.36250023,97104.0,97103.0,0.00279235]
[1736903054542,0.36250023,97104.0,97103.0,0.00179235]
[1736903054893,0.36250023,97104.0,97103.0,0.00579235]
[1736903055217,0.36250023,97104.0,97103.0,0.00179235]
[1736903055416,0.36350023,97104.0,97103.0,0.00679235]
[1736903055618,0.36250023,97104.0,97103.0,0.00179235]
[1736903056015,0.36350023,97104.0,97103.0,0.00679235]
[1736903056834,0.41650966,97104.0,97103.0,0.00679235]
[1736903057270,0.36350023,97104.0,97103.0,0.00679235]
[1736903057474,0.36250023,97104.0,97103.0,0.00179235]
[1736903057674,0.36350023,97104.0,97103.0,0.00679235]
[1736903057937,0.36350023,97104.0,97103.0,0.00179235]
[1736903058346,0.36450023,97104.0,97103.0,0.00679235]
[1736903058679,0.36350023,97104.0,97103.0,0.00179235]
[1736903058892,0.36350023,97104.0,97103.0,0.00679235]
[1736903059297,0.36250023,97104.0,97103.0,0.00179235]
[1736903059928,0.00049523,97104.0,97103.0,0.1875792]
[1736903060130,0.00134883,97104.0,97103.0,0.5173452]
[1736903060332,0.00134883,97104.0,97103.0,0.62157212]
[1736903060766,0.00234883,97104.0,97103.0,0.41075689]
[1736903060926,0.00134883,97104.0,97103.0,0.30152997]
[1736903061397,0.00234883,97104.0,97103.0,0.30752997]
[1736903061616,0.00134883,97104.0,97103.0,0.30152997]
[1736903061969,0.00234883,97104.0,97103.0,0.23129235]
[1736903062177,0.02217871,97104.0,97103.0,0.00179235]
[1736903062584,0.02317871,97104.0,97103.0,0.01079235]
[1736903062952,0.00234883,97104.0,97103.0,0.01079235]
[1736903063592,0.00838883,97104.0,97103.0,0.01079235]
[1736903063798,0.28561575,97104.0,97103.0,0.01079235]
[1736903064132,0.68476513,97104.0,97103.0,0.01079235]
[1736903064332,0.68376513,97104.0,97103.0,0.00179235]
[1736903064672,0.78799205,97104.0,97103.0,0.00179235]
[1736903064857,0.78799205,97104.0,97061.0,0.206054]
[1736903064858,0.39976738,97085.0,97060.0,0.00179277]
[1736903065090,1.0360483,97085.0,97084.0,0.00029256]
[1736903065295,1.5180573,97085.0,97084.0,0.00029256]
[1736903065462,0.206041,97068.0,97060.0,0.00179277]
[1736903065641,0.46630792,97068.0,97060.0,0.00179277]
[1736903066631,0.47639607,97068.0,97060.0,0.00179277]
[1736903066859,0.47639607,97068.0,97067.0,0.00100207]
[1736903067050,0.49939607,97068.0,97067.0,0.00100207]
[1736903067302,0.59261772,97068.0,97067.0,0.00100207]
[1736903067486,0.60877876,97068.0,97067.0,0.00100207]
[1736903068046,0.61077876,97068.0,97067.0,0.00100207]
[1736903068253,0.48851711,97068.0,97067.0,0.00100207]
[1736903068489,0.38229019,97068.0,97067.0,0.00100207]
[1736903068731,0.359041,97068.0,97067.0,0.00100207]
[1736903068864,0.365081,97068.0,97067.0,0.07810207]
[1736903069056,0.212081,97068.0,97067.0,0.07810207]
[1736903069257,0.43470706,97068.0,97067.0,0.00100207]
[1736903069458,0.43670706,97068.0,97067.0,0.00100207]
[1736903070375,0.54093398,97068.0,97067.0,0.00100207]
[1736903071020,0.53893398,97068.0,97067.0,0.00100207]
[1736903071867,0.53893398,97068.0,97067.0,0.00500207]
[1736903072068,0.55509407,97068.0,97067.0,0.00100207]
[1736903072515,0.53893398,97068.0,97067.0,0.00600207]
[1736903072833,0.55509405,97068.0,97067.0,0.00600207]
[1736903074847,0.57809405,97068.0,97067.0,0.00600207]
[1736903075054,0.59885643,97068.0,97067.0,0.00600207]
[1736903075283,0.92644136,97068.0,97067.0,0.00600207]
[1736903075486,1.25624136,97068.0,97067.0,0.00600207]
[1736903075729,1.25954136,97068.0,97067.0,0.00600207]
[1736903076422,1.25954136,97068.0,97067.0,0.00100207]
[1736903076753,1.73687995,97068.0,97067.0,0.00100207]
[1736903076948,1.25954136,97068.0,97067.0,0.00100207]
[1736903077655,1.26154136,97068.0,97067.0,0.00100207]
[1736903078121,1.25954136,97068.0,97067.0,0.00100207]
[1736903078267,1.26254136,97068.0,97067.0,0.00100207]
[1736903079718,1.27870366,97068.0,97067.0,0.00100207]
[1736903080615,1.27570366,97068.0,97067.0,0.00100207]
[1736903081015,1.27870366,97068.0,97067.0,0.00100207]
[1736903082977,1.26254136,97068.0,97067.0,0.00100207]
[1736903085332,0.91879636,97068.0,97067.0,0.00100207]
[1736903085528,2.04845436,97068.0,97067.0,0.00100207]
[1736903085934,1.96885036,97068.0,97067.0,0.00100207]
[1736903086830,2.19922593,97068.0,97067.0,0.00100207]
[1736903087256,2.21538809,97068.0,97067.0,0.00100207]
[1736903087856,1.98501252,97068.0,97067.0,0.00100207]
[1736903088090,1.87135952,97068.0,97067.0,0.00100207]
[1736903088323,1.73775352,97068.0,97067.0,0.00100207]
[1736903089934,1.87590296,97068.0,97067.0,0.00100207]
[1736903091239,1.73171352,97068.0,97067.0,0.00100207]
[1736903091482,1.53629846,97068.0,97067.0,0.00100207]
[1736903091655,0.83827008,97068.0,97067.0,0.00100207]
[1736903091898,0.64306792,97068.0,97067.0,0.00100207]
[1736903092102,0.64910792,97068.0,97067.0,0.00100207]
[1736903092298,0.79910792,97068.0,97067.0,0.00100207]
[1736903092501,0.64910792,97068.0,97067.0,0.00100207]
[1736903092908,0.79610792,97068.0,97067.0,0.00100207]
[1736903093084,0.64610792,97068.0,97067.0,0.00200207]
[1736903093314,0.79610792,97068.0,97067.0,0.00200207]
[1736903093485,0.8472972,97068.0,97067.0,0.00200207]
[1736903094452,0.8472972,97068.0,97067.0,0.00100207]
[1736903094659,0.8472972,97068.0,97067.0,0.00200207]
[1736903095070,0.86345831,97068.0,97067.0,0.00100207]
[1736903095496,0.8472972,97068.0,97067.0,0.00200207]
[1736903095797,0.8472972,97068.0,97067.0,0.00100207]
[1736903095993,0.8472972,97068.0,97067.0,0.00200207]
[1736903096359,0.8472572,97068.0,97067.0,0.00200207]
[1736903098074,0.79606792,97068.0,97067.0,0.00200207]
[1736903099259,0.79606792,97068.0,97067.0,0.00100207]
[1736903099658,0.79606792,97068.0,97067.0,0.00300207]
[1736903100984,0.685841,97068.0,97067.0,0.00300207]
[1736903101205,0.356041,97068.0,97067.0,0.08330207]
[1736903101411,0.37820112,97068.0,97067.0,0.08330207]
[1736903101821,0.362041,97068.0,97067.0,0.08330207]
[1736903101982,0.09208117,97078.0,97067.0,0.08330207]
[1736903101983,0.12263554,97077.0,97073.0,0.179]
[1736903102190,0.09208117,97078.0,97077.0,0.0967]
[1736903102383,0.09808117,97078.0,97077.0,0.0967]
[1736903102612,0.006,97078.0,97077.0,0.0967]
[1736903102939,0.212019,97078.0,97077.0,0.0967]
[1736903103268,0.206019,97078.0,97077.0,0.0967]
[1736903103442,0.212019,97078.0,97077.0,0.0967]
[1736903104236,0.206019,97078.0,97077.0,0.0967]
[1736903104421,0.26662992,97078.0,97077.0,0.0967]
[1736903104958,0.26662992,97078.0,97077.0,0.1017]
[1736903105171,0.26662992,97078.0,97077.0,0.005]
[1736903105172,0.41662992,97078.0,97077.0,0.005]
[1736903105591,0.362019,97078.0,97077.0,0.005]
[1736903105789,0.006,97078.0,97076.0,0.0823]
[1736903106023,0.001,97078.0,97077.0,0.006]
[1736903106224,0.007,97078.0,97077.0,0.006]
[1736903106595,0.001,97078.0,97077.0,0.006]
[1736903106774,0.007,97078.0,97077.0,0.006]
[1736903107519,0.006,97078.0,97076.0,0.0823]
[1736903107705,0.007,97078.0,97077.0,0.006]
[1736903107915,0.006,97078.0,97076.0,0.0823]
[1736903108279,0.007,97078.0,97077.0,0.007]
[1736903109185,0.006,97078.0,97076.0,0.0823]
[1736903109498,0.006,97077.0,97076.0,0.0893]
[1736903109939,0.001,97078.0,97077.0,0.30583762]
[1736903110668,0.0008537,97084.0,97083.0,0.07923762]
[1736903110834,0.0008537,97084.0,97083.0,0.16153762]
[1736903111041,0.0008537,97084.0,97083.0,0.25823762]
[1736903111409,0.0008537,97084.0,97083.0,0.0823]
[1736903111612,0.1508537,97084.0,97083.0,0.0823]
[1736903112049,0.206019,97078.0,97074.0,0.0823]
[1736903112481,0.356039,97069.0,97068.0,0.0476]
[1736903112705,0.15,97068.0,97065.0,0.0823]
[1736903114651,0.18493137,97069.0,97068.0,0.0967]
[1736903114854,0.18493137,97069.0,97068.0,0.30583762]
[1736903115442,0.05683137,97069.0,97068.0,0.30583762]
[1736903115728,0.09244684,97087.0,97083.0,0.0967]
[1736903115881,0.09244684,97087.0,97083.0,0.179]
[1736903116081,0.09244684,97087.0,97083.0,0.25823762]
[1736903116765,0.12263554,97100.0,97083.0,0.25823762]
[1736903117368,0.2068196,97104.0,97083.0,0.25823762]
[1736903117768,0.0008536,97104.0,97083.0,0.25823762]
[1736903118267,0.0018537,97084.0,97083.0,0.26723762]
[1736903118467,0.0008537,97084.0,97083.0,0.25823762]
[1736903118906,0.0018537,97084.0,97083.0,0.26723762]
[1736903120196,0.0008537,97084.0,97083.0,0.46669146]
[1736903120426,0.0018537,97084.0,97083.0,0.47569146]
[1736903120870,0.0018537,97084.0,97083.0,0.46669146]
[1736903120871,0.0008537,97084.0,97083.0,0.46669146]
[1736903121069,0.0018537,97084.0,97083.0,0.47569146]
[1736903123982,0.0018537,97084.0,97083.0,0.52139146]
[1736903125118,0.0018537,97084.0,97083.0,0.62139146]
[1736903126451,0.0018537,97084.0,97083.0,0.63178532]
[1736903126630,0.0018537,97084.0,97083.0,0.73178532]
[1736903127022,0.0018537,97084.0,97083.0,0.88178532]
[1736903127843,0.0008537,97084.0,97083.0,0.87278532]
[1736903128251,0.0018537,97084.0,97083.0,0.88178532]
[1736903128469,0.0018537,97084.0,97083.0,0.87278532]
[1736903128673,0.0018537,97084.0,97083.0,0.88178532]
[1736903128881,0.0028537,97084.0,97083.0,0.88178532]
[1736903129933,0.0018537,97084.0,97083.0,0.87278532]
[1736903130142,0.0008537,97084.0,97083.0,0.87278532]
[1736903130344,0.0008537,97084.0,97083.0,0.88178532]
[1736903131096,0.0008537,97084.0,97083.0,0.87278532]
[1736903131296,0.0008537,97084.0,97083.0,1.19848532]
[1736903131536,0.0008537,97084.0,97083.0,1.20748532]
[1736903134748,0.0008537,97084.0,97083.0,1.19848532]
[1736903135125,0.0008537,97084.0,97083.0,1.20748532]
[1736903136341,0.0008537,97084.0,97083.0,1.19848532]
[1736903136542,7e-07,97084.0,97083.0,1.20748532]
[1736903136742,0.0008536,97104.0,97103.0,0.60340362]
[1736903136945,0.0008536,97104.0,97103.0,1.28333054]
[1736903137573,0.0008536,97104.0,97103.0,1.04354423]
[1736903137926,0.00134883,97104.0,97103.0,1.04354423]
[1736903138343,0.00134883,97104.0,97103.0,1.35249423]
[1736903139205,0.00134883,97104.0,97103.0,1.37355152]
[1736903139808,0.00134883,97104.0,97103.0,1.48255152]
[1736903140030,0.00134883,97104.0,97103.0,1.47355152]
[1736903140435,0.00134883,97104.0,97103.0,1.48255152]
[1736903140653,0.00134883,97104.0,97103.0,1.47355152]
[1736903140977,0.00134883,97104.0,97103.0,1.48255152]
[1736903146615,0.00134883,97104.0,97103.0,1.38255152]
[1736903146780,0.00134883,97104.0,97103.0,1.23685152]
[1736903146981,0.00134883,97104.0,97103.0,1.14015152]
[1736903147187,0.00134883,97104.0,97103.0,1.12634292]
[1736903147494,0.00109132,97104.0,97103.0,0.80408054]
[1736903149796,0.00109132,97104.0,97103.0,0.79508054]
[1736903149997,0.00109132,97104.0,97103.0,0.80408054]
[1736903150398,0.00109132,97104.0,97103.0,0.79508054]
[1736903150745,0.00109132,97104.0,97103.0,0.80408054]
[1736903151062,0.00109132,97104.0,97103.0,0.79508054]
[1736903152531,0.00109132,97104.0,97103.0,0.80408054]
[1736903153274,0.00109132,97104.0,97103.0,0.79508054]
[1736903153627,0.00109132,97104.0,97103.0,0.80408054]
[1736903153829,0.00109132,97104.0,97103.0,0.79687247]
[1736903154036,0.00109132,97104.0,97103.0,0.87347247]
[1736903154257,0.00109132,97104.0,97103.0,0.88247247]
[1736903155525,0.00109132,97104.0,97103.0,0.87347247]
[1736903155721,0.00109132,97104.0,97103.0,0.88247247]
[1736903156175,0.00109132,97104.0,97103.0,0.87347247]
[1736903156324,0.00109132,97104.0,97103.0,0.88247247]
[1736903157167,0.00109132,97104.0,97103.0,0.87347247]
[1736903157480,0.00109132,97104.0,97103.0,0.88247247]
[1736903160702,0.00109132,97104.0,97103.0,0.87347247]
[1736903162138,0.00109132,97104.0,97103.0,0.88247247]
[1736903163179,0.00109132,97104.0,97103.0,0.70917247]
[1736903163899,0.00109132,97104.0,97103.0,0.80587247]
[1736903164261,0.00109132,97104.0,97103.0,0.72663485]
[1736903164462,0.00109132,97104.0,97103.0,0.49567955]
[1736903173486,0.00109132,97104.0,97103.0,0.59990647]
[1736903173683,0.00109132,97104.0,97103.0,0.67690647]
[1736903173910,0.00109132,97104.0,97103.0,0.59990647]
[1736903177607,0.00109132,97104.0,97103.0,0.64830647]
[1736903177815,0.00109132,97104.0,97103.0,0.92810647]
[1736903178219,0.00109132,97104.0,97103.0,1.07810647]
[1736903178423,0.00109132,97104.0,97103.0,1.09836845]
[1736903178994,0.00109132,97104.0,97103.0,0.83936845]
[1736903179116,0.00109132,97104.0,97103.0,0.73936845]
[1736903179319,0.00109132,97104.0,97103.0,0.84836845]
[1736903179960,0.00109132,97104.0,97103.0,0.65166845]
[1736903180160,0.00109132,97104.0,97103.0,0.64266845]
[1736903180394,0.00109132,97104.0,97103.0,0.69096845]
[1736903180589,0.00109132,97104.0,97103.0,0.69996845]
[1736903181768,0.00109132,97104.0,97103.0,0.69096845]
[1736903181967,0.00109132,97104.0,97103.0,0.69996845]
[1736903182219,0.00109132,97104.0,97103.0,0.62016845]
[1736903182448,0.00109132,97104.0,97103.0,0.61116845]
[1736903182568,0.00109132,97104.0,97103.0,0.62016845]
[1736903189107,0.00109132,97104.0,97103.0,0.41644193]
[1736903189308,0.00109132,97104.0,97103.0,0.49567955]
[1736903189508,0.00109132,97104.0,97103.0,0.41644193]
[1736903189731,0.00109132,97104.0,97103.0,0.49567955]
[1736903192396,0.00109132,97104.0,97103.0,0.41644193]
[1736903192916,0.00109132,97104.0,97103.0,0.40744193]
[1736903193336,0.00109132,97104.0,97103.0,0.41344193]
[1736903193537,0.00109132,97104.0,97103.0,0.40744193]
[1736903193747,0.00109132,97104.0,97103.0,0.41344193]
[1736903196527,0.00109132,97104.0,97103.0,0.49267955]
[1736903197616,0.00109132,97104.0,97103.0,0.48667955]
[1736903198941,0.00109132,97104.0,97103.0,0.49567955]
[1736903199147,0.00109132,97104.0,97103.0,0.48667955]
[1736903199591,0.00109132,97104.0,97103.0,0.49567955]
[1736903201275,0.11944601,97113.0,97104.0,0.205964]
[1736903201539,0.11944601,97113.0,97112.0,0.0967]
[1736903201716,0.09261751,97117.0,97115.0,0.07923762]
[1736903201921,0.09261751,97117.0,97116.0,0.0967]
[1736903202341,0.24261751,97117.0,97103.0,0.4165902]
[1736903202544,0.205964,97104.0,97103.0,0.3198902]
[1736903202793,0.15,97112.0,97104.0,0.0967]
[1736903202936,0.15,97112.0,97109.0,0.0967]
[1736903203148,0.205952,97110.0,97109.0,0.0967]
[1736903203354,0.15,97112.0,97109.0,0.0967]
[1736903203600,0.14488626,97110.0,97109.0,0.0967]
[1736903204331,0.14488626,97110.0,97109.0,0.1007]
[1736903204332,0.00596,97110.0,97109.0,0.1007]
[1736903206137,0.09263229,97115.0,97111.0,0.17593762]
[1736903206375,0.09263229,97115.0,97114.0,0.17593762]
[1736903206926,0.09859229,97120.0,97114.0,0.17593762]
[1736903207125,0.09859229,97120.0,97119.0,0.0967]
[1736903207829,0.00596,97120.0,97119.0,0.0967]
[1736903208246,0.09263229,97124.0,97123.0,0.0967]
[1736903208475,0.09859229,97124.0,97123.0,0.0967]
[1736903208982,0.09263229,97124.0,97123.0,0.0967]
[1736903209355,0.09263229,97125.0,97124.0,0.0967]
[1736903210153,0.32830569,97130.0,97124.0,0.0967]
[1736903210344,0.00596,97127.0,97124.0,0.0967]
[1736903210781,0.00596,97127.0,97126.0,0.0967]
[1736903212349,0.09263229,97134.0,97132.0,0.0967]